Cogmind - Beta 9.6 @@@ ROGUE MODE // 2020.05.29 @ 16:00:32 Player: Terminus Result: Self-destructed Performance ------------- Evolutions (7) 3500 Regions Visited (28) 5600 Robots Destroyed (317) 1585 Value Destroyed (10663) 10663 Prototype IDs (29) 580 Alien Tech Used (1) 200 Bonus (2041) 2041 TOTAL SCORE: 24169 Bonus ------- High Alert Combat Kills 788 Follower Combat Kills 1931 Network Hubs Disabled 200 Met Data Miner 300 Met Imprinter 300 Destroyed Z-Imprinter 1000 Built Enhanced Grunts 300 Friendly Fire -2778 Cogmind --------- Core Integrity 159/1300 Matter 3/300 Energy 280/1170 System Corruption 14% Temperature Cool (104) Movement Hovering (76) Location -3/Research Parts ------- > --- POWER (2) -------- Micro Fission Core > --- PROPULSION (4) --- Combat Antigrav System Combat Antigrav System > --- UTILITY (13) ----- Experimental Energy Well Advanced Signal Interpreter Layered Medium Armor Plating Hacking Suite Hacking Suite > --- WEAPON (3) ------- Phase Gun > --- INVENTORY (4) ---- Combat Antigrav System Peak State ------------ > --- POWER ------------ Angular Momentum Engine Quantum Reactor > --- PROPULSION ------- Combat Airjet Combat Gravmag System Combat Gravmag System Combat Gravmag System > --- UTILITY ---------- Cooling System Large Storage Unit Large Storage Unit Large Storage Unit Experimental Sensor Array Experimental Signal Interpreter Advanced Targeting Computer Armor Integrity Analyzer Improved Hacking Suite Improved Hacking Suite Improved Hacking Suite Deep Network Scanner > --- WEAPON ----------- Hypervelocity Coil Gun Hypervelocity Coil Gun > --- INVENTORY -------- Micro Fission Core Micro Fission Core Combat Airjet Improved Energy Well Advanced Targeting Computer Improved Particle Charger Improved Medium Armor Plating Layered Medium Armor Plating Centrium Medium Armor Plating Improved Hacking Suite System Restoration Module Proton Cannon Proton Cannon Neutron Cannon Improved Proton Missile Launcher Remote Datajack Phasing Sabre [Rating: 105] Favorites ----------- Power Angular Momentum Engine Engine Angular Momentum Engine Power Core Micro Fission Core Reactor Light Antimatter Reactor Propulsion Combat Gravmag System Leg Aluminum Leg Hover Unit Combat Gravmag System Utility Large Storage Unit Device Experimental Sensor Array Storage Large Storage Unit Processor Advanced Signal Interpreter Hackware Hacking Suite Protection Hardened Medium Armor Plating Weapon EM Pulse Cannon Energy Gun Small Laser Energy Cannon EM Pulse Cannon Ballistic Gun Hypervelocity Coil Gun Ballistic Cannon Heavy Flak Cannon Launcher Advanced EMP Blaster Special Weapon Remote Datajack Slashing Weapon Axe Piercing Weapon Spear Build | -11 -10 -10 -9 -9 -8 -8 -7 -7 -7 -7 -7 -7 -7 -6 -6 -6 -6 -6 -6 -6 -5 -5 -5 -5 -5 -5 -4 -3 ------- Run | Scr Mat Min Mat Min Mat Sto Fac Was Fac Low Low Zio Dee Pro Fac Was Fac Low Low Dat Pro Fac Ext Cet Arc Hub Fac Res Slots Evolved 14 | . . . 2 . 2 . 2 . . . . . . . 2 . . . . . . 2 . . . . 2 2 Power 1 | . . . . . . . . . . . . . . . 1 . . . . . . . . . . . . . Propulsion 1 | . . . . . 1 . . . . . . . . . . . . . . . . . . . . . . . Utility 11 | . . . 2 . 1 . 2 . . . . . . . 1 . . . . . . 2 . . . . 2 1 Weapon 1 | . . . . . . . . . . . . . . . . . . . . . . . . . . . . 1 Parts Attached 356 | 6 8 . 21 3 30 46 15 1 49 2 11 2 3 13 41 . 24 2 4 9 1 6 3 3 3 4 30 16 Power 28 | 1 1 . 3 . 1 4 1 . 2 . . . . . 5 . 2 . . 2 . . . 1 . 1 2 2 Engine 21 | 1 1 . 3 . 1 4 1 . 2 . . . . . 5 . 1 . . 1 . . . . . 1 . . Core 3 | . . . . . . . . . . . . . . . . . . . . . . . . . . . 2 1 Reactor 4 | . . . . . . . . . . . . . . . . . 1 . . 1 . . . 1 . . . 1 Propulsion 54 | 2 2 . 3 . 9 9 5 . 1 . 2 . . 4 9 . . . . . . . . . . . 3 5 Treads . | . . . . . . . . . . . . . . . . . . . . . . . . . . . . . Leg 27 | 2 2 . 3 . 9 9 2 . . . . . . . . . . . . . . . . . . . . . Wheel . | . . . . . . . . . . . . . . . . . . . . . . . . . . . . . Hover 27 | . . . . . . . 3 . 1 . 2 . . 4 9 . . . . . . . . . . . 3 5 Flight . | . . . . . . . . . . . . . . . . . . . . . . . . . . . . . Utility 119 | 1 2 . 5 1 5 7 5 1 20 . 6 . 2 3 14 . 13 2 2 3 . 2 1 2 1 1 13 7 Device 51 | . . . 1 1 1 2 1 . 11 . 4 . 1 . 8 . 12 2 1 1 . . . 1 . . 3 1 Storage 13 | 1 2 . 2 . 1 . . 1 . . 1 . . 2 1 . . . . . . . . . . . . 2 Processor 8 | . . . . . . . 1 . 2 . . . . . . . . . . . . . . 1 . . 4 . Hackware 12 | . . . . . . . 2 . 1 . . . . . 1 . 1 . . . . 1 . . 1 . 3 2 Protection 35 | . . . 2 . 3 5 1 . 6 . 1 . 1 1 4 . . . 1 2 . 1 1 . . 1 3 2 Artifact . | . . . . . . . . . . . . . . . . . . . . . . . . . . . . . Weapon 155 | 2 3 . 10 2 15 26 4 . 26 2 3 2 1 6 13 . 9 . 2 4 1 4 2 . 2 2 12 2 Energy Gun 17 | . 1 . 4 . 5 1 . . 4 . . . . . 1 . . . . . . . . . . . . 1 Energy Cannon 53 | . . . 4 1 4 9 1 . 11 . . 1 . 1 4 . 6 . 2 1 1 1 1 . . 1 3 1 Ballistic Gun 23 | 2 1 . . 1 . 5 2 . . . . . . . 1 . . . . . . 3 1 . 1 1 5 . Ballistic Cannon 1 | . . . . . . . . . . . . . . . . . . . . 1 . . . . . . . . Launcher 34 | . 1 . 2 . 4 7 . . 3 1 1 . 1 4 2 . 3 . . 1 . . . . . . 4 . Special Weapon 1 | . . . . . . . . . . . . . . . 1 . . . . . . . . . . . . . Impact Weapon . | . . . . . . . . . . . . . . . . . . . . . . . . . . . . . Slashing Weapon 10 | . . . . . . . . . 7 . . . . . 2 . . . . . . . . . 1 . . . Piercing Weapon 16 | . . . . . 2 4 1 . 1 1 2 1 . 1 2 . . . . 1 . . . . . . . . Special Melee Weapon . | . . . . . . . . . . . . . . . . . . . . . . . . . . . . . Unidentified Prototypes 17 | . . . 2 . 2 4 2 . 1 . 1 . . 1 . . . . . . . 1 . . . . 1 2 Parts Lost 61 | . 2 . 2 . 4 5 . 1 5 . . . . 1 7 . 3 . . 1 . . . . . 3 20 7 Power 9 | . 1 . . . . . . . 1 . . . . . 3 . . . . 1 . . . . . . 2 1 Propulsion 13 | . . . 1 . 1 2 . . . . . . . . 1 . . . . . . . . . . 1 5 2 Utility 25 | . . . 1 . 2 2 . . 2 . . . . 1 . . 1 . . . . . . . . 1 12 3 Weapon 14 | . 1 . . . 1 1 . 1 2 . . . . . 3 . 2 . . . . . . . . 1 1 1 Highest Loss Streak 17 | . 1 . 1 . 3 2 . 1 2 . . . . 1 2 . 1 . . 1 . . . . . 3 17 7 Average Slot Usage (%) 98 | . 98 100 99 100 99 99 100 89 99 100 99 97 100 98 99 100 99 100 99 100 100 100 100 100 100 99 79 40 Engine 7 | . 13 14 10 11 9 8 7 7 7 7 7 7 7 7 11 12 6 6 6 6 6 5 5 5 5 5 2 . Reactor 1 | . . . . . . . . . . . . . . . . . 5 6 6 5 6 5 5 5 5 5 3 1 Leg 9 | . 28 28 21 22 27 26 21 . . . . . . . . . . . . . . . . . . . . . Hover 15 | . . . . . . . 1 23 23 23 27 28 28 28 24 25 25 25 25 25 25 22 22 22 22 22 15 10 Device 7 | . . . 11 11 10 10 8 7 7 7 6 7 4 . 4 6 6 12 11 9 12 11 11 10 11 10 6 . Storage 20 | . 26 28 22 22 27 27 22 14 15 15 15 21 21 21 18 18 18 18 18 18 18 16 16 16 16 16 11 2 Processor 4 | . . . . . . . 7 7 7 7 7 7 7 7 6 6 6 6 6 6 6 5 5 10 11 11 13 8 Hackware 10 | . . . . . . . 13 15 14 15 14 14 14 14 18 18 17 12 12 12 12 16 16 16 16 16 17 10 Protection 3 | . . . 11 11 6 7 . 7 7 7 5 . 2 4 1 . . . . 2 . 5 5 1 . . . 3 Energy Gun 1 | . 4 14 8 . 3 . . . 3 . . . . . . . . . . . . . . . . . . . Energy Cannon 6 | . . . 13 21 12 6 8 2 4 7 7 5 . 3 4 . 7 12 11 8 6 3 . . . 4 . . Ballistic Gun 3 | . 23 14 . . . 5 2 2 . . . . . . 1 6 1 . . . . 2 10 11 11 5 6 . Launcher 1 | . . . . . 1 3 . . . . . . 6 3 . . 3 . . . . . . . . . . . Piercing Weapon 1 | . . . . . . 1 3 . . 6 6 5 7 7 3 . . . . 1 . . . . . . . . Naked Turns . | . . . . . . . . . . . . . . . . . . . . . . . . . . . . . Heaviest Build 106 | 11 41 40 57 57 74 82 75 57 67 62 72 70 77 77 91 74 92 92 92 99 93 100 97 96 96 106 99 30 Greatest Support 100 | 20 20 20 20 20 35 47 57 57 66 66 88 88 88 88 100 100 100 100 100 100 100 100 100 100 100 100 97 90 Greatest Overweight (x) 7 | 2 3 1 2 2 7 2 1 . 1 . . . . . 3 . . . . . . . . . . 1 1 . Average Overweight (x) . | . . 1 2 2 1 1 . . . . . . . . . . . . . . . . . . . . . . Largest Inventory Capacity 22 | 6 16 16 16 16 22 22 22 16 16 16 22 22 22 22 22 22 22 22 22 22 22 22 22 22 22 22 22 4 Average Capacity 20 | 5 14 16 16 16 22 22 21 15 16 16 17 22 22 22 22 22 22 22 22 22 22 22 22 22 22 22 17 4 Most Carried 22 | 2 14 16 16 16 22 22 22 16 16 16 19 22 22 22 22 22 22 22 22 22 22 22 22 22 22 22 21 4 Average Carried 19 | 1 8 15 15 15 21 21 21 11 15 16 15 20 21 21 21 21 21 22 22 21 22 21 21 22 22 21 13 3 Final Capacity 22 | 6 16 16 16 16 22 22 16 16 16 16 22 22 22 22 22 22 22 22 22 22 22 22 22 22 22 22 4 4 Final Carried 22 | 2 14 16 16 16 22 22 16 9 16 16 19 21 22 22 22 22 22 22 22 22 22 22 22 22 22 22 3 1 Class Distribution -------------------- 30% | Hacker-Mutant 20% | Machinist-Mutant 18% | Hauler-Mutant 14% | Mutant 9% | Scavenger-Mutant 4% | Commander-Mutant Dominant Class ---------------- Mutant | -10/Materials Mutant | -10/Mines Mutant | -9/Materials Mutant | -9/Mines Hauler-Mutant | -8/Materials Hauler-Mutant | -8/Storage Hauler-Mutant | -7/Factory Hacker-Mutant | -7/Waste Hacker-Mutant | -7/Factory Hacker-Mutant | -7/Lower Caves Machinist-Mutant | -7/Lower Caves Machinist-Mutant | -7/Zion Machinist-Mutant | -7/Deep Caves Scavenger-Mutant | -6/Proximity Caves Scavenger-Mutant | -6/Factory Scavenger-Mutant | -6/Waste Hacker-Mutant | -6/Factory Machinist-Mutant | -6/Lower Caves Machinist-Mutant | -6/Lower Caves Machinist-Mutant | -6/Data Miner Machinist-Mutant | -5/Proximity Caves Hacker-Mutant | -5/Factory Hacker-Mutant | -5/Extension Hacker-Mutant | -5/Cetus Hacker-Mutant | -5/Archives Hacker-Mutant | -5/Hub_04(d) Wizard-Mutant | -4/Factory Hacker-Mutant | -3/Research Resources | -11 -10 -10 -9 -9 -8 -8 -7 -7 -7 -7 -7 -7 -7 -6 -6 -6 -6 -6 -6 -6 -5 -5 -5 -5 -5 -5 -4 -3 ----------- Run | Scr Mat Min Mat Min Mat Sto Fac Was Fac Low Low Zio Dee Pro Fac Was Fac Low Low Dat Pro Fac Ext Cet Arc Hub Fac Res Matter Collected 6544 | 284 281 57 201 100 370 733 187 . 662 110 165 46 142 476 467 65 528 93 109 200 . 40 766 160 190 35 77 . Remotely . | . . . . . . . . . . . . . . . . . . . . . . . . . . . . . Salvage Created 14171 | 96 395 173 587 69 1615 2292 209 . 1605 229 416 . 32 962 1241 131 1572 . 74 465 . 126 663 363 120 428 268 40 Parts 683 | 4 25 15 38 4 67 115 6 . 83 10 15 . 1 35 61 6 64 . 2 21 . 13 21 22 10 25 19 1 Haulers Intercepted 17 | . 1 . 3 . 4 6 . . 1 . 1 . . . 1 . . . . . . . . . . . . . Recyclers Shooed 10 | . . 1 2 . 1 . . . . . . . . . . . 3 . . . . . 3 . . . . . Parts Field Recycled . | . . . . . . . . . . . . . . . . . . . . . . . . . . . . . Retrieved Matter . | . . . . . . . . . . . . . . . . . . . . . . . . . . . . . Parts Self-Destructed 26 | . . . . . . . . . . 4 9 . . 13 . . . . . . . . . . . . . . Prevented 33 | . . . . . . . . . . 6 2 . . 23 . . . . 2 . . . . . . . . . Kills | -11 -10 -10 -9 -9 -8 -8 -7 -7 -7 -7 -7 -7 -7 -6 -6 -6 -6 -6 -6 -6 -5 -5 -5 -5 -5 -5 -4 -3 ------- Run | Scr Mat Min Mat Min Mat Sto Fac Was Fac Low Low Zio Dee Pro Fac Was Fac Low Low Dat Pro Fac Ext Cet Arc Hub Fac Res Combat Hostiles Destroyed 198 | . 10 6 12 2 26 38 3 . 22 5 5 . 6 12 13 . 19 . 1 4 . . 4 3 . . 6 1 Melee 9 | . . . . . 1 3 2 . 1 . . . . . 2 . . . . . . . . . . . . . Guns 38 | . 7 6 1 1 2 6 1 . 4 . . . . . 2 . . . . . . . 4 3 . . . 1 Cannons 39 | . . . 3 1 9 8 . . 8 2 . . . 1 2 . 4 . . . . . . . . . 1 . AOE 76 | . 3 . 8 . 8 16 . . 4 2 5 . 6 8 3 . 8 . . . . . . . . . 5 . Classes Destroyed 20 | 1 4 . 5 . 2 1 1 . 1 . . . 2 1 . . . . . . . . 1 1 . . . . Worker 16 | . 3 1 2 . . 1 1 . 3 . . . . . 2 . 1 . . . . . 1 . . 1 . . Builder 21 | . . . 1 . . 4 . . 5 . . . . . 2 . 2 . . . . 2 1 . . 2 2 . Hauler 17 | . 1 . 3 . 4 6 . . 1 . 1 . . . 1 . . . . . . . . . . . . . Recycler 10 | 1 . 1 . . . 1 1 . 3 . . . . . 2 . . . . . . . 1 . . . . . Carrier 1 | . . . . . . . . . . . . . . . . . . . . . . . . 1 . . . . Mechanic 1 | . . . . . . . . . 1 . . . . . . . . . . . . . . . . . . . Operator 15 | . . . 2 . 3 4 . . 1 . . . . . 1 . 1 . . . . . . . 3 . . . Drone 2 | . . . . . . . . . . . . . . . . . . . . . . . 2 . . . . . Watcher 26 | . . . 3 . 5 2 . . 2 . . . . . 5 . 5 . . . . 2 1 1 . . . . Swarmer 38 | . 3 6 3 1 4 8 . . 1 2 . . . 4 . . 1 . . . . . . . . . 4 1 Grunt 90 | . 7 . 5 1 11 21 . . 9 3 5 . . 3 5 . 16 . . . . . 3 . . . 1 . Brawler 3 | . . . 1 . 1 . . . 1 . . . . . . . . . . . . . . . . . . . Duelist 8 | . . . . . 1 3 . . 1 . . . . . 2 . 1 . . . . . . . . . . . Protector 2 | . . . . . . 1 . . . . . . . 1 . . . . . . . . . . . . . . Sentry 21 | . . . 3 . 7 4 . . 3 . . . . . 1 . . . 1 . . . 1 . . . 1 . Demolisher 4 | . . . . . . . . . . . . . . 4 . . . . . . . . . . . . . . Hunter 5 | . . . . . 2 1 . . 1 . . . . . 1 . . . . . . . . . . . . . Programmer 15 | . . . . . . . 3 . 6 . . . . . 4 . 1 . . . . . . 1 . . . . Cetus Guard 2 | . . . . . . . . . . . . . . . . . . . . . . . . 2 . . . . Enhanced Grunt 8 | . . . . . . . . . . . . . . . . . . . . 4 . . . . . 4 . . Z-Light 2 | . . . . . . . . . . . . . 2 . . . . . . . . . . . . . . . Assembled 4 | . . . . . . . . . . . . . 4 . . . . . . . . . . . . . . . Surgeon 1 | . . . . . . . . . . . . . . . . . 1 . . . . . . . . . . . Thug 1 | . . . . . . . . . . . . . . . . . . . . . . . 1 . . . . . Savage 1 | . . . . . . . . . . . . . . . . . . . . . . . 1 . . . . . Martyr 2 | . . . . . . . . . . . . . . . . 2 . . . . . . . . . . . . Best Kill Streak 10 | 1 4 4 6 1 5 7 2 . 5 3 5 . 3 6 8 . 10 . 1 3 . 2 2 2 2 2 5 1 Combat Bots Only 6 | . 3 3 6 1 4 5 1 . 5 3 5 . 3 6 3 . 6 . 1 3 . . 1 2 . . 3 1 Max Kills in Single Turn 8 | 1 4 1 3 1 2 3 1 . 4 1 2 . 1 2 8 1 3 . 1 1 . 2 2 1 1 2 4 1 Gunslinging . | . . . . . . . . . . . . . . . . . . . . . . . . . . . . . Exploded 3 | . 3 . 3 . 2 2 . . 2 1 2 . 1 2 2 . 2 . . . . . . . . . 2 . Melee 1 | . . . . . 1 1 1 . 1 . . . . . 1 . . . . . . . . . . . . . Uniques/NPCs Destroyed 2 | . . . . . . . . . . . . . 1 . . . . . . 1 . . . . . . . . Z-Imprinter (-7/Deep Caves) Data Miner (-6/Data Miner) Combat | -11 -10 -10 -9 -9 -8 -8 -7 -7 -7 -7 -7 -7 -7 -6 -6 -6 -6 -6 -6 -6 -5 -5 -5 -5 -5 -5 -4 -3 -------- Run | Scr Mat Min Mat Min Mat Sto Fac Was Fac Low Low Zio Dee Pro Fac Was Fac Low Low Dat Pro Fac Ext Cet Arc Hub Fac Res Damage Taken 15435 | . 487 128 395 124 1043 1401 182 55 1548 167 . . 187 515 1894 . 423 . 21 369 . . 334 31 22 684 2752 2673 Core 3285 | . 95 9 73 13 60 138 31 . 138 37 . . 13 106 253 . 59 . . . . . 21 15 . 127 956 1141 Absorbed by Shields 113 | . . . . . . . . . . . . . . . 43 . . . . . . . 41 29 . . . . Core Remaining (%) 64 | 100 . 58 . 78 . 64 . . . . . . . 53 . . . . . . 63 . . . . 83 16 . Volleys Fired 790 | 4 42 19 37 9 67 92 19 . 95 11 4 . 16 65 49 2 59 . 2 13 2 31 59 13 16 24 27 13 Largest 2 | 2 2 2 2 2 2 2 2 . 2 1 1 . 1 1 2 1 1 . 2 2 1 2 2 2 2 2 2 1 Hottest 150 | 40 60 60 126 126 126 131 40 . 136 69 36 . 39 69 138 28 90 . 138 150 90 90 75 70 70 125 90 90 Shots Fired 1124 | 8 83 38 61 13 114 123 32 . 141 10 5 . 16 65 50 2 60 2 4 16 2 40 115 26 32 26 27 13 Gun 512 | 8 82 38 24 2 26 37 26 . 58 . . . . . 12 2 . . . . . 18 112 26 32 2 2 5 Cannon 431 | . . . 31 11 77 53 6 . 71 5 1 . . 28 28 . 31 2 4 6 2 22 3 . . 24 18 8 Launcher 180 | . 1 . 6 . 11 33 . . 12 5 4 . 16 37 9 . 29 . . 10 . . . . . . 7 . Special 1 | . . . . . . . . . . . . . . . 1 . . . . . . . . . . . . . Kinetic 367 | 8 67 19 . 2 . 37 26 . . . . . . . 6 2 . . . . . 26 112 26 32 2 2 . Thermal 226 | . 15 19 . . . 3 6 . 87 . . . . . 6 . 19 . . . 2 14 . . . 24 18 13 Explosive 34 | . 1 . 6 . 5 . . . . . . . 16 6 . . . . . . . . . . . . . . Electromagnetic 496 | . . . 55 11 109 83 . . 54 10 5 . . 59 37 . 41 2 4 16 . . 3 . . . 7 . Robot Hit Streak 23 | 2 10 5 7 2 17 12 13 . 12 8 . . 2 13 23 3 5 . 4 10 . 11 9 8 7 4 5 7 Robot Miss Streak 18 | 2 2 3 2 2 3 5 2 . 4 3 . . 2 4 4 4 6 . . . . 18 5 1 3 1 3 1 Penetration Max 3 | . . . . . . . . . . . . . . . . . . . . . . 2 3 1 1 . . . Secondary Targets 2 | . . . . . . 2 . . . . . . . . . . . . . . . . . . . . . . Max Gunslinging Chain 1 | . . . . . . 1 . . . . . . . . . . . . . . . . . . . . . . Shots Hit Robots 684 | 4 58 19 39 6 93 71 21 . 110 4 4 . 2 32 58 5 28 . 4 7 . 13 54 14 21 4 5 8 Core Hits 537 | 1 25 8 27 2 58 71 6 . 55 6 12 . 17 33 33 3 48 . 1 15 . 21 47 9 10 8 13 8 Critical Hits 67 | 1 . . . . . . . . 9 . . . . . . . . . . . . 6 32 9 9 1 . . Critical Kills 23 | 1 . . . . . . . . 2 . . . . . . . . . . . . 2 9 5 3 1 . . Critical Parts Destroyed 40 | . . . . . . . . . 7 . . . . . . . . . . . . 4 20 3 6 . . . Melee Attacks 210 | . . . . . 9 15 30 . 50 . 12 . 10 2 66 14 . . . 2 . . . . . . . . Impact . | . . . . . . . . . . . . . . . . . . . . . . . . . . . . . Slashing 83 | . . . . . . . . . 39 . . . . . 30 14 . . . . . . . . . . . . Piercing 127 | . . . . . 9 15 30 . 11 . 12 . 10 2 36 . . . . 2 . . . . . . . . Sneak Attacks 19 | . . . . . . 1 . . 9 . 1 . . . 4 3 . . . 1 . . . . . . . . Combat Hostiles 1 | . . . . . . . . . . . . . . . 1 . . . . . . . . . . . . . Follow-up Attacks . | . . . . . . . . . . . . . . . . . . . . . . . . . . . . . Damage Inflicted 29145 | 50 878 225 1707 205 3011 4518 477 . 4309 299 637 . 901 2038 3204 384 2598 . 96 648 . 376 789 133 243 556 518 345 Guns 4955 | 50 704 222 143 16 352 344 392 . 990 . . . . . 253 47 . . . . . 149 789 133 243 7 16 105 Cannons 7395 | . . . 722 152 1787 771 . . 1231 48 . . . 732 524 . 498 . 96 119 . 227 . . . 187 73 228 Explosions 13652 | . 174 . 842 37 811 3134 . . 912 251 443 . 901 1306 1557 . 2099 . . 401 . . . . . 362 422 . Melee 3090 | . . . . . 61 269 85 . 1146 . 194 . . . 870 337 . . . 128 . . . . . . . . Ramming 53 | . . 3 . . . . . . 30 . . . . . . . 1 . . . . . . . . . 7 12 Kinetic 3102 | 50 571 66 . 16 . 344 392 . . . . . . . 87 47 . . . . . 341 789 133 243 7 16 . Thermal 5868 | . 133 156 158 37 211 380 . . 2128 . 54 . . 165 1252 . 486 . . 80 . 35 . . . 187 73 333 Explosive 2769 | . 174 . 684 . 378 170 . . . . . . 901 348 . . . . . . . . . . . . 114 . Electromagnetic 14263 | . . . 865 152 2361 3355 . . 1005 299 389 . . 1525 995 . 2111 . 96 440 . . . . . 362 308 . Impact . | . . . . . . . . . . . . . . . . . . . . . . . . . . . . . Slashing 1774 | . . . . . . . . . 927 . . . . . 510 337 . . . . . . . . . . . . Piercing 1316 | . . . . . 61 269 85 . 219 . 194 . . . 360 . . . . 128 . . . . . . . . Highest Corruption 26 | . . 1 . . . 3 2 10 18 18 18 16 . . 14 26 26 26 . . . . . . . 8 4 14 Average Corruption 12 | . . 1 . . . 2 1 8 13 18 17 16 . . 7 21 26 12 . . . . . . . 2 3 5 Corruption Purged 29 | . . . . . . . . . . . 2 . . . . . . 26 . . . . . . . . 1 . Effects 458 | . . 4 . . . 7 1 5 119 20 26 3 . . 39 15 120 82 . . . . . . . 1 9 7 Message Errors 85 | . . 3 . . . 2 . . 19 2 4 1 . . 10 1 22 20 . . . . . . . . . 1 Matter Fused 80 | . . . . . . 2 . . 16 3 5 . . . 6 2 19 22 . . . . . . . . 4 1 Heat Flow Errors 44 | . . . . . . 1 . . 11 2 2 . . . 6 1 9 11 . . . . . . . . 1 . Energy Discharges 45 | . . . . . . 1 . 1 9 1 1 . . . 3 2 9 11 . . . . . . . 1 2 4 Parts Rejected 2 | . . . . . . . . . . . 1 . . . . . 1 . . . . . . . . . . . Data Loss (minor) 34 | . . 1 . . . 1 1 1 6 . . . . . 2 3 9 9 . . . . . . . . 1 . Data Loss (major) 11 | . . . . . . . . . 2 1 1 . . . 1 . 3 3 . . . . . . . . . . Misfires 11 | . . . . . . . . . 5 . 1 . . . . . 3 2 . . . . . . . . . . Alerts 4 | . . . . . . . . . 1 . . . . . . . 1 2 . . . . . . . . . . Misdirections 81 | . . . . . . . . 3 22 8 8 2 . . 4 1 30 2 . . . . . . . . . 1 Targeting Errors 53 | . . . . . . . . . 26 2 3 . . . 5 5 12 . . . . . . . . . . . Weapon Failures 8 | . . . . . . . . . 2 1 . . . . 2 . 2 . . . . . . . . . 1 . Overload Shots . | . . . . . . . . . . . . . . . . . . . . . . . . . . . . . Overflow Damage 1337 | . . . 110 13 76 253 . . 282 . 59 . . 44 345 . 117 . . . . . . . . 23 . 15 Projectiles 329 | . . . 51 13 60 . . . 87 . . . . . 18 . 72 . . . . . . . . 13 . 15 Explosions 719 | . . . 59 . 16 253 . . 79 . 21 . . 44 192 . 45 . . . . . . . . 10 . . Melee 289 | . . . . . . . . . 116 . 38 . . . 135 . . . . . . . . . . . . . Knockbacks 6 | . . . . . . . . . . . . . . . . . . . . . . 6 . . . . . . Impact . | . . . . . . . . . . . . . . . . . . . . . . . . . . . . . Kinetic 6 | . . . . . . . . . . . . . . . . . . . . . . 6 . . . . . . Secondary . | . . . . . . . . . . . . . . . . . . . . . . . . . . . . . Self-Inflicted Damage 677 | . 16 1 63 . 195 189 . . 25 . . . 66 . . . 17 . . . . . . . . 98 3 4 Shots 23 | . 1 . 3 . 5 9 . . 1 . . . 2 . . . 1 . . . . . . . . 1 . . Rammed 12 | . . 1 . . . . . . 1 . . . . . . . 1 . . . . . . . . . 1 8 Targets Rammed 12 | . . 1 . . . . . . 1 . . . . . . . 1 . . . . . . . . . 1 8 Kicked . | . . . . . . . . . . . . . . . . . . . . . . . . . . . . . Crushed . | . . . . . . . . . . . . . . . . . . . . . . . . . . . . . Highest Temperature 414 | . 36 . 18 18 31 155 . . 267 254 222 . 12 120 252 247 414 262 66 117 24 30 6 . . 40 205 111 Average Temperature 77 | . 14 . 8 8 9 31 . . 74 77 95 . 7 45 57 106 93 102 39 59 15 13 6 . . 17 25 50 Received Heat Transfer 2169 | . 267 . 105 18 261 270 . . 399 45 . . 27 15 123 . 165 . 12 48 . . 114 . . . 300 . Effects 12 | . . . . . . . . . 1 . . . . . . . 11 . . . . . . . . . . . Shutdowns 3 | . . . . . . . . . . . . . . . . . 3 . . . . . . . . . . . Energy Bleed 5 | . . . . . . . . . 1 . . . . . . . 4 . . . . . . . . . . . Interference 3 | . . . . . . . . . . . . . . . . . 3 . . . . . . . . . . . Matter Decay 1 | . . . . . . . . . . . . . . . . . 1 . . . . . . . . . . . Siege Activations . | . . . . . . . . . . . . . . . . . . . . . . . . . . . . . Robots Corrupted 48 | . . . 2 . 7 6 . . 4 1 . . . 7 5 . 9 . 1 4 . . . . . 2 . . Combat Hostiles 35 | . . . . . 6 5 . . 4 1 . . . 3 4 . 7 . 1 4 . . . . . . . . Parts Fried 123 | . . . 11 1 14 21 . . 9 1 2 . . 12 17 . 16 . 3 12 . . 1 . . 3 . . Impact Corruptions 1 | . . . . . . . . . 1 . . . . . . . . . . . . . . . . . . . Robots Melted 1 | . . . . . . . . . 1 . . . . . . . . . . . . . . . . . . . Combat Hostiles 1 | . . . . . . . . . 1 . . . . . . . . . . . . . . . . . . . Parts Melted 10 | . . . 1 . . . . . 9 . . . . . . . . . . . . . . . . . . . Heat Transferred 7709 | . 300 350 200 50 300 661 . . 3277 . 150 . . 200 1050 . 598 . . 100 . 25 . . . 125 50 273 Parts Sabotaged . | . . . . . . . . . . . . . . . . . . . . . . . . . . . . . Parts Stolen . | . . . . . . . . . . . . . . . . . . . . . . . . . . . . . Parts Stripped . | . . . . . . . . . . . . . . . . . . . . . . . . . . . . . Power Chain Reactions 34 | . . . 3 1 6 13 . . . . 2 . . 3 . . 4 . . 1 . . . . . . 1 . Missiles Intercepted . | . . . . . . . . . . . . . . . . . . . . . . . . . . . . . Alert | -11 -10 -10 -9 -9 -8 -8 -7 -7 -7 -7 -7 -7 -7 -6 -6 -6 -6 -6 -6 -6 -5 -5 -5 -5 -5 -5 -4 -3 ------- Run | Scr Mat Min Mat Min Mat Sto Fac Was Fac Low Low Zio Dee Pro Fac Was Fac Low Low Dat Pro Fac Ext Cet Arc Hub Fac Res Peak Influence 1232 | 5 222 86 258 154 582 859 436 148 591 . . . . . 587 238 569 . . . . 55 161 483 318 1232 675 296 Average Influence 240 | . 72 52 161 99 275 554 232 136 258 . . . . . 237 202 192 . . . . 17 60 235 268 453 480 221 Maximum Alert Level 4 | . 1 . 1 . 2 3 2 . 2 . . . . . 2 1 2 . . . . . . 2 1 4 2 1 Low Security (%) 53 | 100 87 100 43 100 43 . 47 100 30 . . . . . 65 53 72 . . . . 100 100 67 20 37 . 43 Level 1 22 | . 12 . 56 . 27 20 46 . 52 . . . . . . 46 4 . . . . . . 18 79 6 18 56 Level 2 20 | . . . . . 28 55 6 . 16 . . . . . 34 . 23 . . . . . . 13 . 33 81 . Level 3 3 | . . . . . . 24 . . . . . . . . . . . . . . . . . . . 12 . . Level 4 . | . . . . . . . . . . . . . . . . . . . . . . . . . . 10 . . Level 5 . | . . . . . . . . . . . . . . . . . . . . . . . . . . . . . High Security . | . . . . . . . . . . . . . . . . . . . . . . . . . . . . . Max Security . | . . . . . . . . . . . . . . . . . . . . . . . . . . . . . Squads Dispatched 69 | . 3 . 3 . 6 7 2 . 16 . . . . . 9 . 10 . . . . 3 4 . . 3 2 1 Investigation 21 | . 2 . 1 . 2 1 . . 4 . . . . . 4 . 5 . . . . . 1 . . . . 1 Extermination 11 | . . . . . . . 2 . 4 . . . . . 2 . 1 . . . . 2 . . . . . . Reinforcement 25 | . 1 . 2 . 4 3 . . 1 . . . . . 3 . 4 . . . . 1 3 . . 2 1 . Assault 5 | . . . . . . 3 . . 1 . . . . . . . . . . . . . . . . . 1 . Garrison 7 | . . . . . . . . . 6 . . . . . . . . . . . . . . . . 1 . . Intercept . | . . . . . . . . . . . . . . . . . . . . . . . . . . . . . Construction Impeded 10 | . . . . . 1 1 . . 1 . . . . . 1 . 3 . . . . . 1 . . 1 1 . Haulers Reinforced 2 | . . . . . . . . . . . . . . . . . . . . . . 1 . . . 1 . . Stealth | -11 -10 -10 -9 -9 -8 -8 -7 -7 -7 -7 -7 -7 -7 -6 -6 -6 -6 -6 -6 -6 -5 -5 -5 -5 -5 -5 -4 -3 --------- Run | Scr Mat Min Mat Min Mat Sto Fac Was Fac Low Low Zio Dee Pro Fac Was Fac Low Low Dat Pro Fac Ext Cet Arc Hub Fac Res Distress Signals 25 | . 2 . 1 . 2 2 . . 2 . . . . 6 2 . 1 . . . . . 2 . 1 3 1 . Communications Jammed . | . . . . . . . . . . . . . . . . . . . . . . . . . . . . . Distress Signals . | . . . . . . . . . . . . . . . . . . . . . . . . . . . . . Times Spotted 413 | . 15 6 19 3 38 57 8 6 36 8 4 . 7 20 30 3 39 1 1 4 . 4 27 7 14 13 32 11 Peak Tracking Total 12 | . 7 3 7 2 5 5 3 6 5 5 5 . 3 4 4 2 6 1 1 3 . 3 6 4 2 11 12 8 Tactical Retreats 42 | . 2 1 . 1 1 3 . . 8 . . . . . 5 . 6 1 . . . 2 3 . . . 8 1 Traps | -11 -10 -10 -9 -9 -8 -8 -7 -7 -7 -7 -7 -7 -7 -6 -6 -6 -6 -6 -6 -6 -5 -5 -5 -5 -5 -5 -4 -3 ------- Run | Scr Mat Min Mat Min Mat Sto Fac Was Fac Low Low Zio Dee Pro Fac Was Fac Low Low Dat Pro Fac Ext Cet Arc Hub Fac Res Traps Triggered 23 | . . . . . 2 4 1 . 4 . . . . . 3 . 4 . . . . . 2 . . 1 2 . Indirectly 5 | . . . . . 2 . . . . . . . . . . . 1 . . . . . . . . . 2 . Trap Hack Attempts . | . . . . . . . . . . . . . . . . . . . . . . . . . . . . . Triggered . | . . . . . . . . . . . . . . . . . . . . . . . . . . . . . Disarmed . | . . . . . . . . . . . . . . . . . . . . . . . . . . . . . Reprogrammed . | . . . . . . . . . . . . . . . . . . . . . . . . . . . . . Reused . | . . . . . . . . . . . . . . . . . . . . . . . . . . . . . Traps Extracted . | . . . . . . . . . . . . . . . . . . . . . . . . . . . . . Installed . | . . . . . . . . . . . . . . . . . . . . . . . . . . . . . Triggered 1 | . . . . . . . . . . . . . . . 1 . . . . . . . . . . . . . Machines | -11 -10 -10 -9 -9 -8 -8 -7 -7 -7 -7 -7 -7 -7 -6 -6 -6 -6 -6 -6 -6 -5 -5 -5 -5 -5 -5 -4 -3 ---------- Run | Scr Mat Min Mat Min Mat Sto Fac Was Fac Low Low Zio Dee Pro Fac Was Fac Low Low Dat Pro Fac Ext Cet Arc Hub Fac Res Machines Disabled 79 | . . . 4 2 4 8 1 . 5 . 1 . 3 4 19 . 4 . . 1 . . 3 . . 16 4 . Max in Single Turn 18 | . . . 2 2 1 2 1 . 2 . 1 . 1 2 18 . 2 . . 1 . . 1 . . 13 2 . Garrison Access 6 | . . . . . 1 1 . . 1 . . . . . 1 . 1 . . . . . . . . 1 . . Network Hub 1 | . . . . . . . . . . . . . . . . . . . . . . . . . . 1 . . Machines Sabotaged . | . . . . . . . . . . . . . . . . . . . . . . . . . . . . . Garrisons Compromised . | . . . . . . . . . . . . . . . . . . . . . . . . . . . . . Overloaded Fab Kills . | . . . . . . . . . . . . . . . . . . . . . . . . . . . . . Fab Network Shutdowns 2 | . . . . . . . 1 . . . . . . . . . 1 . . . . . . . . . . . Hacking | -11 -10 -10 -9 -9 -8 -8 -7 -7 -7 -7 -7 -7 -7 -6 -6 -6 -6 -6 -6 -6 -5 -5 -5 -5 -5 -5 -4 -3 --------- Run | Scr Mat Min Mat Min Mat Sto Fac Was Fac Low Low Zio Dee Pro Fac Was Fac Low Low Dat Pro Fac Ext Cet Arc Hub Fac Res Machines Accessed 113 | . 3 . 7 . 8 18 7 . 14 . . . . . 12 . 9 . . 4 . 6 11 1 . 5 3 5 Terminals 85 | . 1 . 5 . 6 16 5 . 11 . . . . . 7 . 7 . . . . 5 11 1 . 4 2 4 Fabricators 11 | . . . . . . . 2 . 3 . . . . . 2 . 1 . . . . 1 . . . . 1 1 Repair Stations 2 | . . . . . . 1 . . . . . . . . 1 . . . . . . . . . . . . . Recycling Units 3 | . 2 . 1 . . . . . . . . . . . . . . . . . . . . . . . . . Scanalyzers 2 | . . . 1 . 1 . . . . . . . . . . . . . . . . . . . . . . . Garrison Access 6 | . . . . . 1 1 . . . . . . . . 2 . 1 . . . . . . . . 1 . . Total Hacks 365 | . 4 . 28 . 24 54 24 . 41 . . . . . 32 . 31 . . 26 . 19 31 4 . 9 17 21 Successful 227 | . 3 . 13 . 13 33 13 . 22 . . . . . 18 . 17 . . 26 . 14 28 3 . 5 10 9 Failed 135 | . 1 . 15 . 11 21 11 . 19 . . . . . 13 . 13 . . . . 5 2 1 . 4 7 12 Catastrophic 19 | . . . 1 . 3 4 2 . 3 . . . . . . . 3 . . . . . . . . 2 . 1 Database Lockouts 3 | . . . . . . . . . . . . . . . 1 . 1 . . . . . 1 . . . . . Manual 225 | . 4 . 24 . 17 39 18 . 22 . . 5 . . 16 . 18 . . . . 15 23 5 . 5 9 5 Terminals 274 | . 2 . 25 . 20 49 20 . 28 . . . . . 21 . 22 . . . . 15 31 4 . 8 13 16 Fabricators 41 | . . . . . . . 4 . 13 . . . . . 5 . 6 . . . . 4 . . . . 4 5 Repair Stations 6 | . . . . . . 4 . . . . . . . . 2 . . . . . . . . . . . . . Recycling Units 3 | . 2 . 1 . . . . . . . . . . . . . . . . . . . . . . . . . Scanalyzers 4 | . . . 2 . 2 . . . . . . . . . . . . . . . . . . . . . . . Garrison Access 11 | . . . . . 2 1 . . . . . . . . 4 . 3 . . . . . . . . 1 . . Terminal Hacks 122 | . . . 4 . 5 17 6 . 7 . . . . . 6 . 7 . . 26 . 7 21 2 . 4 6 4 Record 11 | . . . . . . . . . . . . . . . . . . . . 11 . . . . . . . . Part Schematic 18 | . . . . . . . 1 . 2 . . . . . 1 . 1 . . 6 . 3 2 . . 1 1 . Robot Schematic 6 | . . . . . . . . . . . . . . . . . . . . 6 . . . . . . . . Prototype ID Bank 3 | . . . . . . . . . . . . . . . . . . . . 3 . . . . . . . . Open Door 16 | . . . . . . 7 . . . . . . . . . . . . . . . 1 8 . . . . . Level Access Points 1 | . . . . . . . . . . . . . . . . . . . . . . . . . . 1 . . Branch Access Points 6 | . . . . . 1 . . . 1 . . . . . 1 . 1 . . . . . . . . . 2 . Machine Index 1 | . . . . . . . . . . . . . . . . . . . . . . 1 . . . . . . Terminal Index 11 | . . . . . 2 1 1 . 1 . . . . . 1 . 1 . . . . . 1 . . 1 1 1 Fabricator Index 5 | . . . . . . . 1 . 1 . . . . . 1 . 1 . . . . . . . . . . 1 Scanalyzer Index 1 | . . . . . 1 . . . . . . . . . . . . . . . . . . . . . . . Alert Level 16 | . . . 1 . . 2 2 . 1 . . . . . 1 . 2 . . . . 1 3 1 . . 1 1 Unreport Threat 12 | . . . . . . 4 1 . . . . . . . . . 1 . . . . . 3 1 . . 1 1 Recall Investigation 2 | . . . . . . . . . . . . . . . 1 . . . . . . . 1 . . . . . Recall Extermination 2 | . . . . . . . . . 1 . . . . . . . . . . . . 1 . . . . . . Recall Reinforcements 1 | . . . . . . . . . . . . . . . . . . . . . . . 1 . . . . . Zone Layout 10 | . . . 3 . 1 3 . . . . . . . . . . . . . . . . 2 . . 1 . . Fabricator Hacks 27 | . . . . . . . 3 . 9 . . . . . 5 . 3 . . . . 2 . . . . 2 3 Load Schematic 12 | . . . . . . . 2 . 4 . . . . . 2 . 1 . . . . 1 . . . . 1 1 Build 15 | . . . . . . . 1 . 5 . . . . . 3 . 2 . . . . 1 . . . . 1 2 Repair Station Hacks 6 | . . . . . . 4 . . . . . . . . 2 . . . . . . . . . . . . . Scan Component 3 | . . . . . . 2 . . . . . . . . 1 . . . . . . . . . . . . . Repair 3 | . . . . . . 2 . . . . . . . . 1 . . . . . . . . . . . . . Recycling Unit Hacks . | . . . . . . . . . . . . . . . . . . . . . . . . . . . . . Scanalyzer 4 | . . . 2 . 2 . . . . . . . . . . . . . . . . . . . . . . . Insert Component 2 | . . . 1 . 1 . . . . . . . . . . . . . . . . . . . . . . . Analyze 2 | . . . 1 . 1 . . . . . . . . . . . . . . . . . . . . . . . Garrison Access Hacks 5 | . . . . . 1 1 . . . . . . . . 1 . 1 . . . . . . . . 1 . . Seal Access 5 | . . . . . 1 1 . . . . . . . . 1 . 1 . . . . . . . . 1 . . Unauthorized Hacks 63 | . 3 . 7 . 5 11 4 . 6 . . . . . 4 . 6 . . . . 5 7 1 . . 2 2 Terminals 53 | . 1 . 6 . 5 11 4 . 4 . . . . . 4 . 4 . . . . 3 7 1 . . 2 1 Track 4 | . . . 1 . . 1 . . 1 . . . . . . . . . . . . . 1 . . . . . Assimilate 4 | . . . . . . . 1 . 1 . . . . . 1 . . . . . . 1 . . . . . . Botnet 42 | . 1 . 4 . 5 10 3 . 2 . . . . . 3 . 4 . . . . 2 5 1 . . 1 1 Detonate 1 | . . . . . . . . . . . . . . . . . . . . . . . . . . . 1 . Disrupt 1 | . . . . . . . . . . . . . . . . . . . . . . . 1 . . . . . Operators 1 | . . . 1 . . . . . . . . . . . . . . . . . . . . . . . . . Fabricators 7 | . . . . . . . . . 2 . . . . . . . 2 . . . . 2 . . . . . 1 Prioritize 4 | . . . . . . . . . 1 . . . . . . . 1 . . . . 1 . . . . . 1 Siphon 3 | . . . . . . . . . 1 . . . . . . . 1 . . . . 1 . . . . . . Repair Stations . | . . . . . . . . . . . . . . . . . . . . . . . . . . . . . Recycling Units 3 | . 2 . 1 . . . . . . . . . . . . . . . . . . . . . . . . . Tunnel 3 | . 2 . 1 . . . . . . . . . . . . . . . . . . . . . . . . . Scanalyzers . | . . . . . . . . . . . . . . . . . . . . . . . . . . . . . Garrison Access . | . . . . . . . . . . . . . . . . . . . . . . . . . . . . . Data Cores Recovered 2 | . . . . . . . 1 . . . . . . . . . 1 . . . . . . . . . . . Used 1 | . . . . . . . 1 . . . . . . . . . . . . . . . . . . . . . Hacking Detections 94 | . 1 . 5 . 6 16 6 . 13 . . . . . 10 . 8 . . . . 6 10 1 . 4 3 5 Full Trace Events 11 | . . . . . . 1 . . 4 . . . . . 3 . 2 . . . . . . . . . . 1 Feedback Events 4 | . . . . . . . . . 1 . . . . . 1 . 1 . . . . . . . . . . 1 Corruption 2 | . . . . . . . . . . . . . . . 1 . . . . . . . . . . . . 1 Hackware Fried 2 | . . . . . . . . . 1 . . . . . . . 1 . . . . . . . . . . . Feedback Blocked . | . . . . . . . . . . . . . . . . . . . . . . . . . . . . . Robot Schematics Acquired 6 | . . . . . . . . . . . . . . . . . . . . 6 . . . . . . . . Robots Built . | . . . . . . . . . . . . . . . . . . . . . . . . . . . . . Matter . | . . . . . . . . . . . . . . . . . . . . . . . . . . . . . Time . | . . . . . . . . . . . . . . . . . . . . . . . . . . . . . Total Robot Build Rating . | . . . . . . . . . . . . . . . . . . . . . . . . . . . . . Part Schematics Acquired 20 | . . . 1 . 1 . 1 . 2 . . . . . 1 . 1 . . 6 . 3 2 . . 1 1 . Parts Built 23 | . . . . . . . 2 . 6 . . . . . 5 . 2 . . . . 2 . . . . 2 4 Matter 2824 | . . . . . . . 190 . 613 . . . . . 709 . 332 . . . . 212 . . . . 256 512 Time 884 | . . . . . . . 95 . 232 . . . . . 182 . 142 . . . . 106 . . . . 64 63 Total Part Build Rating 133 | . . . . . . . 10 . 24 . . . . . 29 . 10 . . . . 12 . . . . 16 32 Parts Repaired 3 | . . . . . . 2 . . . . . . . . 1 . . . . . . . . . . . . . Time 157 | . . . . . . 138 . . . . . . . . 19 . . . . . . . . . . . . . Parts Recycled . | . . . . . . . . . . . . . . . . . . . . . . . . . . . . . Recycled Matter . | . . . . . . . . . . . . . . . . . . . . . . . . . . . . . Retrieved Matter . | . . . . . . . . . . . . . . . . . . . . . . . . . . . . . Retrieved Components . | . . . . . . . . . . . . . . . . . . . . . . . . . . . . . Parts Scanalyzed 2 | . . . 1 . 1 . . . . . . . . . . . . . . . . . . . . . . . Part Schematics Acquired 2 | . . . 1 . 1 . . . . . . . . . . . . . . . . . . . . . . . Parts Damaged 1 | . . . . . 1 . . . . . . . . . . . . . . . . . . . . . . . Bothacking | -11 -10 -10 -9 -9 -8 -8 -7 -7 -7 -7 -7 -7 -7 -6 -6 -6 -6 -6 -6 -6 -5 -5 -5 -5 -5 -5 -4 -3 ------------ Run | Scr Mat Min Mat Min Mat Sto Fac Was Fac Low Low Zio Dee Pro Fac Was Fac Low Low Dat Pro Fac Ext Cet Arc Hub Fac Res Used RIF Installer . | . . . . . . . . . . . . . . . . . . . . . . . . . . . . . Robots Hacked 1 | . . . . . . . . . . . . . . . 1 . . . . . . . . . . . . . Non-combat 1 | . . . . . . . . . . . . . . . 1 . . . . . . . . . . . . . Combat . | . . . . . . . . . . . . . . . . . . . . . . . . . . . . . Robot Hacks Applied 1 | . . . . . . . . . . . . . . . 1 . . . . . . . . . . . . . find_chute 1 | . . . . . . . . . . . . . . . 1 . . . . . . . . . . . . . Relay Couplers Released 10 | . . . . . . . . . 1 . . . . . 4 . 3 . . . . . . . . 2 . . Machine Destruction 6 | . . . . . . . . . 1 . . . . . . . 3 . . . . . . . . 2 . . Programmers 4 | . . . . . . . . . . . . . . . 4 . . . . . . . . . . . . . Robots Rewired 9 | . . . . . . . . . . . . . . 2 . . . . . . . . 7 . . . . . Allies Hacked . | . . . . . . . . . . . . . . . . . . . . . . . . . . . . . Hacks Repelled . | . . . . . . . . . . . . . . . . . . . . . . . . . . . . . Allies | -11 -10 -10 -9 -9 -8 -8 -7 -7 -7 -7 -7 -7 -7 -6 -6 -6 -6 -6 -6 -6 -5 -5 -5 -5 -5 -5 -4 -3 -------- Run | Scr Mat Min Mat Min Mat Sto Fac Was Fac Low Low Zio Dee Pro Fac Was Fac Low Low Dat Pro Fac Ext Cet Arc Hub Fac Res Total Allies 60 | . . . . . . 12 . 1 . . . 2 . 2 1 19 . . . . . 1 17 5 . . . . Largest Group 19 | . . . . . . 10 10 1 . . . 2 2 2 1 19 7 . . . . 1 11 7 7 5 . . Highest-Rated Group 696 | . . . . . . 173 173 31 . . . 188 188 94 26 696 191 . . . . 26 305 657 657 470 . . Highest-Rated Ally 156 | . . . . . . 31 29 31 . . . 94 94 94 26 50 33 . . . . 26 156 156 156 94 . . Total Orders 7 | . . . . . . . . . . . . . . 1 . . 4 . . . . . 2 . . . . . GOTO 4 | . . . . . . . . . . . . . . 1 . . 1 . . . . . 2 . . . . . FOLLOW 1 | . . . . . . . . . . . . . . . . . 1 . . . . . . . . . . . EXPLORE 1 | . . . . . . . . . . . . . . . . . 1 . . . . . . . . . . . RETURN 1 | . . . . . . . . . . . . . . . . . 1 . . . . . . . . . . . Ally Attacks 498 | . . . . . . 41 53 13 . . . . 31 25 . 122 14 . . . . . 107 31 25 36 . . Total Damage 12770 | . . . . . . 668 740 273 . . . . 563 1510 . 3737 246 . . . . . 2360 625 908 1140 . . Kills 74 | . . . . . . 6 8 . . . . . 7 7 . 6 . . . . . . 17 6 4 13 . . Allies Corrupted 2 | . . . . . . . . . . . . . . . . . . . . . . . . . . 2 . . Allies Melted 1 | . . . . . . . . . . . . . 1 . . . . . . . . . . . . . . . Intel | -11 -10 -10 -9 -9 -8 -8 -7 -7 -7 -7 -7 -7 -7 -6 -6 -6 -6 -6 -6 -6 -5 -5 -5 -5 -5 -5 -4 -3 ------- Run | Scr Mat Min Mat Min Mat Sto Fac Was Fac Low Low Zio Dee Pro Fac Was Fac Low Low Dat Pro Fac Ext Cet Arc Hub Fac Res Robot Analysis Total . | . . . . . . . . . . . . . . . . . . . . . . . . . . . . . Derelict Logs Recovered 11 | . . 2 . . . . . . . 1 1 1 . 2 . . . 1 . . 3 . . . . . . . Drone Launches 20 | . . . . . . . . . . . . . . . . . 2 . . . . . 18 . . . . . Drone Recoveries . | . . . . . . . . . . . . . . . . . . . . . . . . . . . . . Exploration | -11 -10 -10 -9 -9 -8 -8 -7 -7 -7 -7 -7 -7 -7 -6 -6 -6 -6 -6 -6 -6 -5 -5 -5 -5 -5 -5 -4 -3 ------------- Run | Scr Mat Min Mat Min Mat Sto Fac Was Fac Low Low Zio Dee Pro Fac Was Fac Low Low Dat Pro Fac Ext Cet Arc Hub Fac Res Turns Passed 22727 | 75 687 1151 1024 285 1595 2062 1506 74 1959 241 356 492 746 716 1658 152 1680 2347 162 184 159 792 996 268 145 330 526 359 Spaces Moved 15613 | 41 347 723 449 132 695 863 800 106 1775 288 367 665 769 614 1495 126 1643 283 206 173 209 677 747 103 87 314 417 499 Core 139 | 13 . . . . . . . . . . . . . . . . . . . . . . . . . . 126 . Treads . | . . . . . . . . . . . . . . . . . . . . . . . . . . . . . Legs 3971 | 28 347 723 449 132 695 863 734 . . . . . . . . . . . . . . . . . . . . . Wheels . | . . . . . . . . . . . . . . . . . . . . . . . . . . . . . Hover 11503 | . . . . . . . 66 106 1775 288 367 665 769 614 1495 126 1643 283 206 173 209 677 747 103 87 314 291 499 Flight . | . . . . . . . . . . . . . . . . . . . . . . . . . . . . . Fastest Speed 36 | 50 120 150 180 180 150 153 62 62 62 72 68 68 68 68 68 68 68 68 68 68 68 68 68 68 68 68 40 36 Average Speed 90 | 120 148 150 180 180 171 153 146 62 66 72 68 68 68 68 68 68 68 68 68 68 68 68 68 68 68 69 63 49 Slowest Speed 330 | 150 210 150 180 180 330 185 156 62 142 72 72 68 68 68 290 68 68 68 68 68 68 68 68 68 68 142 150 76 Overloaded Moves . | . . . . . . . . . . . . . . . . . . . . . . . . . . . . . Propulsion Burnouts . | . . . . . . . . . . . . . . . . . . . . . . . . . . . . . Robots Hopped . | . . . . . . . . . . . . . . . . . . . . . . . . . . . . . Cave-ins Triggered 1 | . . . . . . . . . . . . . . . . . . . . . . . . . . . 1 . Exploration Rate (%) 49 | 4 35 96 51 29 58 89 17 79 42 43 48 81 72 65 33 81 40 36 32 77 40 13 83 48 71 42 12 16 Regions Visited 28 Branch Regions 16 Pre-discovered Areas 9 | . 2 . 1 . . . . . . 1 . 3 . 1 . . . . . 1 . . . . . . . . Known Exits Taken 19 | . . . . 1 1 . . . 1 1 1 1 1 1 . . 1 1 1 1 1 1 1 1 1 1 1 . Unknown Exits Taken 5 | 1 1 1 1 . . 1 . . . . . . . . . . . . . . . . . . . . . . Scrap Searched 15 | . . 3 . 3 . . . . . 1 . 3 . 1 . . . 2 2 . . . . . . . . . Spaces Dug 227 | . 10 . . . 5 19 23 . 26 . 12 . 25 14 33 11 8 . . . 2 10 . . . 14 14 1 Terrain Destroyed 823 | . 10 . 49 3 52 60 23 . 71 . 16 . 142 58 58 11 23 . . 1 2 12 . . . 178 51 3 Melee 111 | . . . . . 5 6 21 . 26 . 5 . 2 2 33 11 . . . . . . . . . . . . Projectile 64 | . . . . . . 3 2 . . . . . . . . . 11 . . . 2 12 . . . 15 16 3 AOE 648 | . 10 . 49 3 47 51 . . 45 . 11 . 140 56 25 . 12 . . 1 . . . . . 163 35 . Actions | -11 -10 -10 -9 -9 -8 -8 -7 -7 -7 -7 -7 -7 -7 -6 -6 -6 -6 -6 -6 -6 -5 -5 -5 -5 -5 -5 -4 -3 --------- Run | Scr Mat Min Mat Min Mat Sto Fac Was Fac Low Low Zio Dee Pro Fac Was Fac Low Low Dat Pro Fac Ext Cet Arc Hub Fac Res Total 22689 | 55 435 751 607 167 970 1460 1063 113 2318 309 445 705 956 845 1963 165 2136 2436 222 216 222 965 1120 274 139 393 643 596 Wait 5307 | 3 18 7 69 21 137 408 180 7 305 9 45 33 158 124 265 22 389 2152 10 6 11 245 243 153 32 48 156 51 Move 15586 | 40 346 722 448 131 694 862 800 105 1774 287 366 664 768 613 1495 125 1642 282 205 172 208 676 746 102 86 313 415 499 Hop . | . . . . . . . . . . . . . . . . . . . . . . . . . . . . . Pick Up 156 | 2 16 2 14 1 18 16 6 . 24 . 3 3 1 4 14 1 10 . . 7 . 4 2 1 1 2 2 2 Fast Attach 56 | 6 1 . 4 . 2 7 2 . 5 . 5 . . 2 1 . 4 . 1 1 . 1 . 1 . 2 2 9 Attach 76 | . 2 . 6 . 7 5 3 1 7 . 1 2 . 1 9 . 2 . . 1 . 2 . . . . 20 7 Detach 15 | . . . . . . . . . 1 . 1 2 . . . . . . . . . . . . . . 7 4 Swap 225 | . 5 . 11 3 21 34 10 . 37 2 6 . 3 10 31 . 18 2 3 7 1 3 3 2 3 2 8 . Drop 159 | . 5 . 18 2 15 21 13 . 19 . 2 1 . 11 15 1 10 . 1 7 . 3 3 2 1 2 4 3 Fire 790 | 4 42 19 37 9 67 92 19 . 95 11 4 . 16 65 49 2 59 . 2 13 2 31 59 13 16 24 27 13 Melee 210 | . . . . . 9 15 30 . 50 . 12 . 10 2 66 14 . . . 2 . . . . . . . . Ram 11 | . . . . . . . . . 1 . . . . . . . 1 . . . . . . . . . 1 8 Kick 1 | . . 1 . . . . . . . . . . . . . . . . . . . . . . . . . . Crush . | . . . . . . . . . . . . . . . . . . . . . . . . . . . . . Escape Stasis 45 | . . . . . . . . . . . . . . . 18 . . . . . . . 26 . . . 1 . Rewire 45 | . . . . . . . . . . . . . . 13 . . . . . . . . 32 . . . . . Trap . | . . . . . . . . . . . . . . . . . . . . . . . . . . . . . Miscellaneous 7 | . . . . . . . . . . . . . . . . . 1 . . . . . 6 . . . . . Route ------- -11/Scrapyard -10/Materials -10/Mines (discovered 2 exits: *Mat x2) -9/Materials (discovered 2 exits: Mat / [*Min]) -9/Mines -8/Materials (discovered 2 exits: *Fac / *Sto) -8/Storage (discovered 2 exits: *Fac / [Rec]) -7/Factory -7/Waste -7/Factory (discovered 4 exits: *Fac x2 / *Low x2) -7/Lower Caves -7/Lower Caves -7/Zion -7/Deep Caves -6/Proximity Caves -6/Factory (discovered 2 exits: Low x2) -6/Waste -6/Factory (discovered 3 exits: *Fac / *Low x2) -6/Lower Caves -6/Lower Caves -6/Data Miner -5/Proximity Caves -5/Factory (discovered 3 exits: *Fac / [*Upp] / *Ext) -5/Extension (discovered 2 exits: *Fac / *Cet) -5/Cetus -5/Archives (discovered 2 exits: *Fac / *Hub) -5/Hub_04(d) (discovered 4 exits: *Fac x4) -4/Factory (discovered 3 exits: *Res / Upp x2) -3/Research History --------- Turn | Location | Event 2 | -11/Scrapyard | Met Revision 17 11 | -11/Scrapyard | Discovered new exit (range 15) 76 | -11/Scrapyard | Entered Materials 250 | -10/Materials | Discovered new exit (range 15) 314 | -10/Materials | Build established: Mutant 763 | -10/Materials | Entered Mines 800 | -10/Mines | Discovered new exit (range 12) 1002 | -10/Mines | Received a Rocket Launcher from a helpful Derelict 1167 | -10/Mines | Learned Materials stockpile data 1454 | -10/Mines | Discovered new exit (range 8) 1528 | -10/Mines | Learned 4 Materials zone layouts 1529 | -10/Mines | A weapon hastily lodged in a ceiling crevice suddenly fell to the ground 1586 | -10/Mines | Deemed a non-threat by the Exiles lab entrance 1914 | -10/Mines | Entered Materials 1914 | -9/Materials | Evolved 2 slots: Utility x2 1915 | -9/Materials | Identified exit to Materials 2644 | -9/Materials | Discovered new exit (range 13) 2938 | -9/Materials | Entered Mines 3082 | -9/Mines | Discovered exit to Materials (range 10) 3111 | -9/Mines | Found a damaged Exp. Sensor Array with a note attached 3117 | -9/Mines | Found Prototype Device 3223 | -9/Mines | Entered Materials 3223 | -8/Materials | Evolved 2 slots: Propulsion x1, Utility x1 3545 | -8/Materials | Build established: Hauler-Mutant 4026 | -8/Materials | Identified Exp. Sensor Array 4112 | -8/Materials | Lost 3 parts (1n1u1w) 4249 | -8/Materials | Discovered new exit (range 7) 4447 | -8/Materials | Identified exit to Storage 4452 | -8/Materials | Discovered new exit (range 3) 4818 | -8/Materials | Entered Storage 5060 | -8/Storage | Repaired Broken Exp. Sensor Array? 5741 | -8/Storage | Discovered new exit (range 9) 6013 | -8/Storage | Repaired Deuterium Engine 6051 | -8/Storage | Met a pair of Derelict thieves 6418 | -8/Storage | First assault squad dispatched 6567 | -8/Storage | Discovered new exit (range 13) 6569 | -8/Storage | Assisted by bots powering up and referring to "LRC-V3" 6871 | -8/Storage | Build established: Commander-Mutant 6880 | -8/Storage | Entered Factory 6880 | -7/Factory | Accompanied by 10 allies 6880 | -7/Factory | Evolved 2 slots: Utility x2 7875 | -7/Factory | Build established: Hauler-Mutant 7988 | -7/Factory | Local fabrication network quarantined 8018 | -7/Factory | Fabricated Cmb. Airjet (x2) 8386 | -7/Factory | Sucked down chute 8386 | -7/Factory | Entered Waste 8387 | -7/Waste | Met a frightened Derelict 8391 | -7/Waste | Spotted C-40 Crusher 8396 | -7/Waste | Spotted C-40 Crusher 8396 | -7/Waste | Spotted C-40 Crusher 8398 | -7/Waste | Spotted C-40 Crusher 8401 | -7/Waste | EMP discharged 8401 | -7/Waste | System corruption reached 10% 8403 | -7/Waste | Spotted C-40 Crusher 8415 | -7/Waste | Crushed by Compactor (1 part destroyed, 2 dropped) 8429 | -7/Waste | Spotted C-40 Crusher 8443 | -7/Waste | Discovered new exit (range 12) 8459 | -7/Waste | Identified exit to Factory 8460 | -7/Waste | Entered Factory 8470 | -7/Factory | Identified exit to Lower Caves 8620 | -7/Factory | Build established: Hacker-Mutant 8929 | -7/Factory | Discovered new exit (range 5) 8932 | -7/Factory | Identified exit to Factory 8953 | -7/Factory | Garrison activated, responded to threat 9011 | -7/Factory | Build established: Scavenger-Mutant 9225 | -7/Factory | Hacking Suite fried by hacking feedback 9548 | -7/Factory | Fabricated Cmb. Airjet (x2) 9672 | -7/Factory | Build established: Hacker-Mutant 9808 | -7/Factory | Garrison activated, responded to threat 9918 | -7/Factory | Fabricated Hacking Suite (x1) 9962 | -7/Factory | Fabricated Hacking Suite (x1) 10176 | -7/Factory | Fabricated Spear? 10362 | -7/Factory | Discovered exit to Factory (range 11) 10419 | -7/Factory | Entered Lower Caves 10599 | -7/Lower Caves | Learned location of Extension (-5) 10632 | -7/Lower Caves | Discovered new exit (range 9) 10647 | -7/Lower Caves | Attracted the attention of an 0b10 checkpoint 10659 | -7/Lower Caves | Identified exit to Lower Caves 10660 | -7/Lower Caves | Entered another Lower Caves area 10660 | -7/Lower Caves | Spotted B-75 Beast 10661 | -7/Lower Caves | Encountered a Warlord checkpoint 10689 | -7/Lower Caves | Found Alien Artifact 10689 | -7/Lower Caves | Identified Core Expander 10689 | -7/Lower Caves | Installed Core Expander, added new Propulsion slot 10862 | -7/Lower Caves | Learned 4 Factory zone layouts 11011 | -7/Lower Caves | Discovered new exit (range 8) 11016 | -7/Lower Caves | Identified exit to Zion 11016 | -7/Lower Caves | Entered Zion 11052 | -7/Zion | System corruption cleaned by Quarantine Array 11065 | -7/Zion | Given A8's code to call for help 11325 | -7/Zion | Acquired unknown access codes intercepted by a Zionite 11400 | -7/Zion | Build established: Machinist-Mutant 11465 | -7/Zion | Opened final containment barrier to the Deep Caves 11473 | -7/Zion | Enhanced Grunt warped into view, answering call for help 11490 | -7/Zion | Enhanced Grunt warped into view, answering call for help 11497 | -7/Zion | Discovered new exit (range 3) 11497 | -7/Zion | Saw the warning signs outside the Deep Caves entrance 11499 | -7/Zion | Identified exit to Deep Caves 11508 | -7/Zion | Entered Deep Caves 11508 | -7/Deep Caves | Accompanied by 2 allies 11660 | -7/Deep Caves | Attacked by Z-Imprinter 11671 | -7/Deep Caves | Allies destroyed Z-Imprinter 11729 | -7/Deep Caves | Z-Facility disabled 12167 | -7/Deep Caves | Discovered new exit (range 7) 12170 | -7/Deep Caves | Identified exit to Proximity Caves 12254 | -7/Deep Caves | Entered Proximity Caves 12254 | -6/Proximity Caves | Accompanied by 1 ally 12374 | -6/Proximity Caves | Spotted B-75 Beast 12437 | -6/Proximity Caves | Learned Factory emergency access door positions 12746 | -6/Proximity Caves | Discovered exit to Factory (range 15) 12893 | -6/Proximity Caves | Build established: Scavenger-Mutant 12970 | -6/Proximity Caves | Entered Factory 12970 | -6/Factory | Evolved 2 slots: Power x1, Utility x1 12971 | -6/Factory | Identified exit to Lower Caves 13742 | -6/Factory | Build established: Hacker-Mutant 14164 | -6/Factory | Fabricated Exp. Sensor Array? 14221 | -6/Factory | System corruption reached 10% 14300 | -6/Factory | Repaired Hrd. Medium Armor Plating 14431 | -6/Factory | Fabricated Cmb. Gravmag System (x2) 14489 | -6/Factory | Fabricated Cmb. Gravmag System (x2) 14533 | -6/Factory | Build established: Scavenger-Mutant 14597 | -6/Factory | Central database locked down 14628 | -6/Factory | Manually triggered Chute Trap 14628 | -6/Factory | Sucked down chute 14628 | -6/Factory | Entered Waste 14634 | -6/Waste | Spotted C-40 Crusher 14643 | -6/Waste | EMP discharged 14672 | -6/Waste | Spotted C-40 Crusher 14686 | -6/Waste | Spotted C-40 Crusher 14706 | -6/Waste | Spotted C-40 Crusher 14707 | -6/Waste | Spotted C-40 Crusher 14709 | -6/Waste | Met Warlord forces unprepared to attack 14718 | -6/Waste | Allies destroyed C-40 Crusher 14724 | -6/Waste | Allies destroyed C-40 Crusher 14743 | -6/Waste | EMP discharged 14748 | -6/Waste | Allies destroyed C-40 Crusher 14749 | -6/Waste | Discovered new exit (range 15) 14767 | -6/Waste | Identified exit to Factory 14780 | -6/Waste | Entered Factory 14780 | -6/Factory | Accompanied by 7 allies 15373 | -6/Factory | Build established: Hacker-Mutant 15373 | -6/Factory | Discovered new exit (range 11) 15426 | -6/Factory | Identified exit to Factory 15737 | -6/Factory | Central database locked down 15809 | -6/Factory | Fabricated Imp. Hacking Suite? 15913 | -6/Factory | Hacking Suite fried by hacking feedback 15960 | -6/Factory | Fabricated Imp. Hacking Suite? 16072 | -6/Factory | Local fabrication network quarantined 16460 | -6/Factory | Entered Lower Caves 16505 | -6/Lower Caves | Encountered a Warlord checkpoint 16519 | -6/Lower Caves | Learned Factory garrison access intel 16602 | -6/Lower Caves | Build established: Machinist-Mutant 18803 | -6/Lower Caves | Discovered new exit (range 7) 18807 | -6/Lower Caves | Identified exit to Lower Caves 18807 | -6/Lower Caves | Entered another Lower Caves area 18913 | -6/Lower Caves | Attracted the attention of an 0b10 checkpoint 18947 | -6/Lower Caves | Discovered new exit (range 8) 18951 | -6/Lower Caves | Encountered a Warlord checkpoint 18969 | -6/Lower Caves | Identified exit to Data Miner 18969 | -6/Lower Caves | Entered Data Miner 18969 | -6/Data Miner | Discovered new exit (range 7) 18982 | -6/Data Miner | Met Data Miner 18999 | -6/Data Miner | Learned location of Section 7 (-3) 18999 | -6/Data Miner | Acquired the access code to Warlord's prototype stash 19008 | -6/Data Miner | Received God Mode back door access code from Data Miner 19043 | -6/Data Miner | Destroyed Data Miner 19046 | -6/Data Miner | Found Prototype Hackware 19047 | -6/Data Miner | Data Conduit disabled 19151 | -6/Data Miner | Identified exit to Proximity Caves 19153 | -6/Data Miner | Entered Proximity Caves 19285 | -5/Proximity Caves | Learned Factory terminal intel 19292 | -5/Proximity Caves | Discovered exit to Factory (range 5) 19312 | -5/Proximity Caves | Entered Factory 19312 | -5/Factory | Evolved 2 slots: Utility x2 19312 | -5/Factory | Identified Deep Network Scanner 19313 | -5/Factory | Loaded intel: 21 terminal locations 19314 | -5/Factory | Loaded intel: 4 garrison access locations 19515 | -5/Factory | Discovered new exit (range 16) 19545 | -5/Factory | Discovered new exit (range 16) 19557 | -5/Factory | Discovered new exit (range 10) 19600 | -5/Factory | Build established: Hacker-Mutant 19911 | -5/Factory | Fabricated Hyp. Coil Gun (x2) 20064 | -5/Factory | Identified exit to Factory 20102 | -5/Factory | Identified exit to Extension 20104 | -5/Factory | Entered Extension 20104 | -5/Extension | Accompanied by 1 ally 20128 | -5/Extension | Rescued a captive Derelict 20248 | -5/Extension | Central database locked down 20296 | -5/Extension | Rescued a captive Derelict 20324 | -5/Extension | Rescued a captive Derelict 20335 | -5/Extension | Rescued a captive Derelict 20336 | -5/Extension | Rescued a captive Derelict 20431 | -5/Extension | Rescued a captive Derelict 20433 | -5/Extension | Rescued a captive Derelict 20442 | -5/Extension | Rescued a captive Derelict 20730 | -5/Extension | Spotted B-75 Beast 20743 | -5/Extension | Allies destroyed B-75 Beast 20760 | -5/Extension | Spotted B-75 Beast 20760 | -5/Extension | Allies destroyed B-75 Beast 20804 | -5/Extension | Disrupted transfer network 20916 | -5/Extension | Rescued A7 20969 | -5/Extension | Rescued a captive Derelict 21077 | -5/Extension | Discovered exit to Factory (range 10) 21078 | -5/Extension | Discovered new exit (range 6) 21082 | -5/Extension | Identified exit to Cetus 21100 | -5/Extension | Entered Cetus 21100 | -5/Cetus | Accompanied by 2 allies 21105 | -5/Cetus | Acquired a Cetus Manufacturing Module code from A7 21138 | -5/Cetus | Destroyed Cetus Guard 21139 | -5/Cetus | Spotted Cetus Guard 21140 | -5/Cetus | Spotted Cetus Guard 21146 | -5/Cetus | Allies destroyed Cetus Guard 21147 | -5/Cetus | Destroyed Cetus Guard 21147 | -5/Cetus | Spotted Cetus Guard 21162 | -5/Cetus | Allies destroyed Cetus Guard 21193 | -5/Cetus | Started Cetus Manufacturing Module 21218 | -5/Cetus | Manufactured an Enhanced Grunt 21243 | -5/Cetus | Manufactured an Enhanced Grunt 21268 | -5/Cetus | Manufactured an Enhanced Grunt 21293 | -5/Cetus | Manufactured an Enhanced Grunt 21318 | -5/Cetus | Manufactured an Enhanced Grunt 21336 | -5/Cetus | Discovered new exit (range 15) 21345 | -5/Cetus | Identified exit to Archives 21368 | -5/Cetus | Entered Archives 21368 | -5/Archives | Accompanied by 7 allies 21452 | -5/Archives | Discovered exit to Factory (range 16) 21481 | -5/Archives | Discovered new exit (range 15) 21491 | -5/Archives | Identified exit to Hub_04(d) 21513 | -5/Archives | Entered Hub_04(d) 21513 | -5/Hub_04(d) | Accompanied by 5 allies 21665 | -5/Hub_04(d) | Garrison activated, responded to threat 21810 | -5/Hub_04(d) | Network Hub disabled 21812 | -5/Hub_04(d) | Spotted Lightning 21812 | -5/Hub_04(d) | Spotted Lightning 21812 | -5/Hub_04(d) | Spotted Lightning 21821 | -5/Hub_04(d) | Spotted Lightning 21821 | -5/Hub_04(d) | Spotted Lightning 21825 | -5/Hub_04(d) | Spotted Lightning 21830 | -5/Hub_04(d) | Spotted Lightning 21838 | -5/Hub_04(d) | Spotted Lightning 21838 | -5/Hub_04(d) | Spotted Lightning 21843 | -5/Hub_04(d) | Entered Factory 21843 | -4/Factory | Evolved 2 slots: Utility x2 21861 | -4/Factory | Found Exp. Signal Interpreter 21872 | -4/Factory | Lost 3 parts (1n1u1w) 21882 | -4/Factory | Identified exit to Upper Caves 21980 | -4/Factory | Crushed by falling debris 22093 | -4/Factory | First assault squad dispatched 22175 | -4/Factory | Build established: Wizard-Mutant 22218 | -4/Factory | Spotted B-86 Titan 22260 | -4/Factory | Core integrity fell below 50% 22305 | -4/Factory | Core integrity fell below 20% 22335 | -4/Factory | Lost 17 parts (1p5n10u1w) 22335 | -4/Factory | Discovered new exit (range 8) 22358 | -4/Factory | Fabricated Cmb. Antigrav System? 22362 | -4/Factory | Identified exit to Research 22369 | -4/Factory | Entered Research 22369 | -3/Research | Evolved 2 slots: Utility x1, Weapon x1 22500 | -3/Research | Spotted B-86 Titan 22526 | -3/Research | Fabricated Cmb. Antigrav System (x2) 22551 | -3/Research | Fabricated Cmb. Antigrav System (x2) 22660 | -3/Research | System corruption reached 10% 22681 | -3/Research | Core integrity fell below 50% 22707 | -3/Research | Core integrity fell below 20% 22728 | -3/Research | Self-destructed Last Messages --------------- 22648_ Centrium Medium Armor Plating destroyed. 22649_ Slammed into W-44 Eye. 22651_ S-43 Plague destroyed. 22652_ System corrupted: Energy discharge (-181). 22652_ Fabricator disabled. 22656_ Slammed into W-44 Eye. 22658_ Slammed into S-43 Plague. 22659_ Armor Integrity Analyzer destroyed. 22659_ System corrupted by crushing effect (+2). 22669_ U-05 Engineer destroyed. 22680_ Imp. Hacking Suite destroyed. 22692_ System corrupted: Energy discharge (-78). 22695_ P-80 Master resets K-01 Serf, system corruption cleaned. 22697_ K-01 Serf destroyed. 22707_ U-05 Engineer lays Concrete. 22707_ Broken Cmb. Antigrav System destroyed. 22712_ Acquired Phase Gun. 22713_ System corrupted: Energy discharge (-64). 22718_ S-43 Plague destroyed. 22726_ Destroyed Xenon Bombardment Thruster. Map ----- +----------------------------------------------------+ | ??????????????????????????# #????????# | | ??????????????????????????# #????????# | | ??????????????????######??# #????????# """ | | ??????????????????""S"""??# #????????# """ | | ??????????????????"" """### #????????# """ | | ????????????????? ? # +????????# """ | | ????????????????? # #????????# """ | | ?????????????????"" """ # #????????#! | | ????????????????""" """ # #????????# | | ?????????????# """ """ # #????????# | | ?????????????# + #????????# | | ?????????????# # #????????#####+#+## | | ?????????????# """ """ # #?????????????? | | ????????????????""" """ # #?????????????? | | ??????????????????" """ #!% ##############? | | ?????????????????? # # #?? | | ??????????????????? # # #?? # | | ??????????????????######### # #????? | | ?????????????????########## + #????? | | ?????????????????# # # """ """???????? | | ??????????????#### # # """ ""????????? | | ???????????????lg/ % # # """ "?????????# | | ?????????????????# # # "?????????# | | ?????????????????# # # "?????????# | | ?????????????????# # # "?????????# | | ?????????????????# @# # ????????# | | ?????????????????# [s% # ????????# | | ?????????????????# # ###########???????? | | ?????????????????########## #?????????????????? | | ??????????????????????????# p #?????????????????? | | ??????????????????????????# #?????????????????? | | ??????????????????????????# #?????????????????? | | ??????????????????????????# u#?????????????????? | | ??????????????????????????# +?????????????????? | | ??????????????????????????# #?????????????????? | | ??????????????????????????? #?????????????????? | | ??????????????????????????? #?????????????????? | | ??????????????????????????? #?????????????????? | | ??????????????????????????? #?????????????????? | | ??????????????????????????? #?????????????????? | | ??????????????????????????? ???????????????????? | | ?????????????????????????????????????????????????? | | ?????????????????????????????????????????????????? | | ?????????????????????????????????????????????????? | | ?????????????????????????????????????????????????? | | ?????????????????????????????????????????????????? | | ?????????????????????????????????????????????????? | | ?????????????????????????????????????????????????? | | ?????????????????????????????????????????????????? | | ?????????????????????????????????????????????????? | +----------------------------------------------------+ Best States ------------- Heat Dissipation 75 Energy Generation 38 Energy Capacity 1170 Matter Stores 300 Matter Capacity 300 Sight Range 16 Robot Scan Range 30 Terrain Scan Density 10 Armor Coverage 375 Core Shielding 20 Evasion (%) 57 Targeting Accuracy 8 Armor Integrity Analysis 33 Offensive Hacking 61 Defensive Hacking 10 Item Schematics ----------------- Cooling System | -9/Materials | Scanalyzed Exp. Sensor Array | -8/Materials | Scanalyzed Cmb. Airjet | -7/Factory | Hacked Hacking Suite | -7/Factory | Hacked Spear | -7/Factory | Hacked Cmb. Gravmag System | -6/Factory | Hacked Imp. Hacking Suite | -6/Factory | Hacked Combat Drone Bay | -6/Data Miner | Free Lgt. Regenerative Plating | -6/Data Miner | Free Exp. Flexi-carbon Leg | -6/Data Miner | Free Exp. Terrain Scanner | -6/Data Miner | Free Exp. Terrain Scan Processor | -6/Data Miner | Free Mni. Smartbomb Launcher | -6/Data Miner | Free Exp. Signal Interpreter | -5/Factory | Hacked Adv. Hacking Suite | -5/Factory | Hacked Hyp. Coil Gun | -5/Factory | Hacked Lrg. Storage Unit | -5/Extension | Hacked Adv. Cooling System | -5/Extension | Hacked Cmb. Antigrav System | -5/Hub_04(d) | Hacked Lgt. Quantum Reactor | -4/Factory | Hacked Robot Schematics ------------------ S-27 Virus | -6/Data Miner | Free G-50 Soldier | -6/Data Miner | Free G-67 Veteran | -6/Data Miner | Free X-72 Disruptor | -6/Data Miner | Free P-70 Sage | -6/Data Miner | Free I-36 Angel | -6/Data Miner | Free Fabricated ------------ Cmb. Airjet | x2 | -7/Factory Cmb. Airjet | x2 | -7/Factory Hacking Suite | x1 | -7/Factory Hacking Suite | x1 | -7/Factory Spear | x2 | -7/Factory Exp. Sensor Array | x1 | -6/Factory Cmb. Gravmag System | x2 | -6/Factory Cmb. Gravmag System | x2 | -6/Factory Imp. Hacking Suite | x1 | -6/Factory Imp. Hacking Suite | x1 | -6/Factory Hyp. Coil Gun | x2 | -5/Factory Cmb. Antigrav System | x2 | -4/Factory Cmb. Antigrav System | x2 | -3/Research Cmb. Antigrav System | x2 | -3/Research Alien Tech Used ----------------- Core Expander Achievements -------------- None Challenges ------------ None Game ------ Seed AssaultHelicalRedirector Manual? 0 Play Time 03:27:00 Cumulative 1035.3 hours Start 2020.05.28 @ 21:57:06 End 2020.05.29 @ 16:00:32 Sessions 3 Manual Loads 0 Difficulty Rogue Special Mode None Game No. 337 Rogue 337 Adventurer 0 Explorer 0 Win Type - Total 76 Types 14/8/34/5/1/2/12 Lore% 97 Gallery% 96 Achievement% 85 Wizard Run 0 Options --------- ASCII 0 Keyboard 0 Movement Numpad Keybinds 0 Fullscreen 1 Font 18/SmallcapsGlow Map View 76x50 Tactical HUD 1 Map Filters NONE Filters NONE Steam 1 RUN: 42878060-b12c-4944-8138-222788121d87